Cogmind - Beta 13 @@@ ROGUE MODE // 2024.05.06 @ 16:39:59 Player: Compound1080 Result: Destroyed by G-47 Trooper with Particle Gun Performance ------------- Evolutions (2) 1000 Regions Visited (5) 1000 Robots Destroyed (23) 115 Value Destroyed (798) 798 Prototype IDs (2) 40 Alien Tech Used (0) 0 Bonus (300) 300 TOTAL SCORE: 3253 Bonus ------- Aligned with FarCom 300 Cogmind --------- Core Integrity 0/550 Matter 142/300 Energy 48/100 System Corruption 7% Temperature Cool (9) Movement Core (100) Ox1 Location -8/Materials Parts ------- > --- POWER (1) -------- (None) > --- PROPULSION (3) --- (None) > --- UTILITY (5) ------ Small Storage Unit > --- WEAPON (2) ------- (None) > --- INVENTORY (8) ---- (None) Peak State ------------ > --- POWER ------------ Ion Engine > --- PROPULSION ------- Aluminum Leg Aluminum Leg Aluminum Leg > --- UTILITY ---------- Small Storage Unit Sensor Array Improved Terrain Scanner Seismic Detector 0b10 Alert Chip > --- WEAPON ----------- Light Assault Rifle Heavy Assault Rifle > --- INVENTORY -------- Aluminum Leg Small Laser Grenade Launcher Mining Claw [Rating: 19] Favorites ----------- Power Light Ion Engine Engine Light Ion Engine Propulsion Aluminum Leg Leg Aluminum Leg Utility Small Storage Unit Device Sensor Array Storage Small Storage Unit Processor 0b10 Alert Chip Weapon Small Laser Energy Gun Small Laser Ballistic Gun Assault Rifle Launcher Grenade Launcher Slashing Weapon Mining Claw Build | -11 -10 -10 -10 -9 -8 ------- Run | Yrd Mat Min Exi Min Mat Slots Evolved 4 | . . . . . 4 Power . | . . . . . . Propulsion 1 | . . . . . 1 Utility 3 | . . . . . 3 Weapon . | . . . . . . Parts Attached 38 | 5 1 17 1 . 14 Power 3 | 1 . 2 . . . Engine 3 | 1 . 2 . . . Core . | . . . . . . Reactor . | . . . . . . Propulsion 9 | 2 . 4 . . 3 Treads . | . . . . . . Leg 9 | 2 . 4 . . 3 Wheel . | . . . . . . Hover . | . . . . . . Flight . | . . . . . . Utility 5 | 1 1 . . . 3 Device 3 | . 1 . . . 2 Storage 1 | 1 . . . . . Processor 1 | . . . . . 1 Hackware . | . . . . . . Protection . | . . . . . . Artifact . | . . . . . . Weapon 21 | 1 . 11 1 . 8 Energy Gun 7 | . . 6 . . 1 Energy Cannon . | . . . . . . Ballistic Gun 9 | 1 . 3 1 . 4 Ballistic Cannon . | . . . . . . Launcher 3 | . . 2 . . 1 Special Weapon . | . . . . . . Impact Weapon . | . . . . . . Slashing Weapon 2 | . . . . . 2 Piercing Weapon . | . . . . . . Special Melee Weapon . | . . . . . . Unidentified Prototypes 2 | . . . . . 2 Parts Lost 23 | . . 6 . . 17 Power 2 | . . 1 . . 1 Propulsion 7 | . . 2 . . 5 Utility 4 | . . . . . 4 Weapon 10 | . . 3 . . 7 Highest Loss Streak 8 | . . 6 . . 8 To Critical Strikes . | . . . . . . Average Slot Usage (%) 91 | . 81 97 100 100 79 Engine 11 | . 14 13 14 14 5 Leg 25 | . 28 26 28 28 21 Device 15 | . 12 14 14 14 21 Storage 12 | . 14 14 14 14 9 Processor 1 | . . . . . 5 Energy Gun 13 | . . 22 14 14 1 Ballistic Gun 7 | . 12 3 14 14 9 Slashing Weapon 1 | . . . . . 5 Naked Turns . | . . . . . . Heaviest Build 16 | 10 11 14 14 13 16 Greatest Support 30 | 20 20 20 20 20 30 Greatest Overweight (x) 3 | 1 . 2 . . 3 Average Overweight (x) . | . . . . . . Largest Inventory Capacity 8 | 8 8 8 8 8 8 Average Capacity 7 | 6 8 8 8 8 8 Most Carried 8 | 5 7 8 8 8 7 Average Carried 5 | 3 6 6 7 8 3 Final Capacity 8 | 8 8 8 8 8 8 Final Carried 8 | 5 7 8 8 8 . Class Distribution -------------------- 65% | Mutant 14% | Scavenger-Mutant 12% | Scavenger-Assassin 7% | Scavenger-Skirmisher Dominant Class ---------------- Mutant | -10/Materials Mutant | -10/Mines Scavenger-Mutant | -10/Exiles Scavenger-Skirmisher | -9/Mines Scavenger-Assassin | -8/Materials Resources | -11 -10 -10 -10 -9 -8 ----------- Run | Yrd Mat Min Exi Min Mat Matter Collected 712 | 179 . 450 . . 83 Remotely . | . . . . . . Salvage Created 948 | . . 573 . . 375 Parts 51 | . . 33 . . 18 Haulers Intercepted . | . . . . . . Recyclers Shooed . | . . . . . . Parts Field Recycled . | . . . . . . Retrieved Matter . | . . . . . . Parts Self-Destructed . | . . . . . . Prevented . | . . . . . . Kills | -11 -10 -10 -10 -9 -8 ------- Run | Yrd Mat Min Exi Min Mat Combat Hostiles Destroyed 20 | . . 13 . . 7 Guns 17 | . . 12 . . 5 AOE 3 | . . 1 . . 2 Classes Destroyed 6 | . . 4 . . 2 Tunneler 4 | . . 3 . . 1 Grunt 14 | . . 10 . . 4 Brawler 1 | . . . . . 1 Sentry 3 | . . 2 . . 1 Hunter 1 | . . . . . 1 Assembled 1 | . . 1 . . . Best Kill Streak 6 | . . 5 . . 6 Combat Bots Only 6 | . . 5 . . 6 Max Kills in Single Turn 2 | . . 2 . . 2 Gunslinging . | . . . . . . Exploded 2 | . . 1 . . 2 Melee . | . . . . . . Uniques/NPCs Destroyed . | . . . . . . Combat | -11 -10 -10 -10 -9 -8 -------- Run | Yrd Mat Min Exi Min Mat Hostile Shots Fired 228 | . 19 79 . . 130 Missed 68 | . 9 20 . . 39 Damage Taken 2865 | . 86 889 . . 1890 Core 724 | . 18 151 . . 555 Absorbed by Shields . | . . . . . . Core Remaining (%) 66 | 100 . . . 32 . Volleys Fired 112 | . . 68 . . 44 Largest 2 | . . 2 . . 2 Hottest 80 | . . 80 . . 55 Shots Fired 170 | . . 113 . . 57 Gun 154 | . . 99 . . 55 Cannon . | . . . . . . Launcher 16 | . . 14 . . 2 Special . | . . . . . . Kinetic 74 | . . 23 . . 51 Thermal 80 | . . 76 . . 4 Explosive 16 | . . 14 . . 2 Electromagnetic . | . . . . . . Robot Hit Streak 29 | . . 17 . . 29 Robot Miss Streak 5 | . . 5 . . 1 Penetration Max . | . . . . . . Secondary Targets 1 | . . 1 . . . Max Gunslinging Chain 1 | . . 1 . . . Shots Hit Robots 111 | . . 62 . . 49 Core Hits 56 | . . 29 . . 27 Critical Kills . | . . . . . . Critical Parts Destroyed 1 | . . . . . 1 Critical Strikes 1 | . . . . . 1 Destroy 1 | . . . . . 1 Melee Attacks 9 | . . . . . 9 Impact . | . . . . . . Slashing 9 | . . . . . 9 Piercing . | . . . . . . Sneak Attacks 1 | . . . . . 1 Combat Hostiles . | . . . . . . Follow-up Attacks . | . . . . . . Damage Inflicted 1667 | . . 779 . . 888 Guns 1350 | . . 742 . . 608 Cannons . | . . . . . . Explosions 270 | . . 37 . . 233 Melee 47 | . . . . . 47 Ramming . | . . . . . . Kinetic 813 | . . 252 . . 561 Thermal 537 | . . 490 . . 47 Explosive 270 | . . 37 . . 233 Electromagnetic . | . . . . . . Impact . | . . . . . . Slashing 47 | . . . . . 47 Piercing . | . . . . . . Highest Corruption 7 | . . . . . 7 Average Corruption 7 | . . . . . 7 Corruption Purged . | . . . . . . Corruption Blocked . | . . . . . . Effects 8 | . . . . . 8 Message Errors 3 | . . . . . 3 Matter Fused 2 | . . . . . 2 Heat Flow Errors 1 | . . . . . 1 Misfires 2 | . . . . . 2 Overload Shots . | . . . . . . Overflow Damage 6 | . . . . . 6 Projectiles . | . . . . . . Explosions 6 | . . . . . 6 Melee . | . . . . . . Knockbacks . | . . . . . . Impact . | . . . . . . Kinetic . | . . . . . . Secondary . | . . . . . . Self-Inflicted Damage 208 | . . 143 . . 65 Shots 7 | . . 5 . . 2 Rammed . | . . . . . . Targets Rammed . | . . . . . . Kicked . | . . . . . . Crushed . | . . . . . . Highest Temperature 153 | . . 153 . . 103 Average Temperature 35 | . . 34 . . 40 Received Heat Transfer 1119 | . . 345 . . 774 Siege Activations . | . . . . . . Robots Corrupted . | . . . . . . Combat Hostiles . | . . . . . . Parts Fried . | . . . . . . Impact Corruptions . | . . . . . . Robots Melted . | . . . . . . Combat Hostiles . | . . . . . . Parts Melted 1 | . . 1 . . . Heat Transferred 1225 | . . 1125 . . 100 Parts Sabotaged . | . . . . . . Parts Stolen . | . . . . . . Parts Stripped . | . . . . . . Power Chain Reactions . | . . . . . . Alert | -11 -10 -10 -10 -9 -8 ------- Run | Yrd Mat Min Exi Min Mat Peak Influence 187 | . 15 187 . . 178 Initial 5 | . . 5 . . . Average 36 | . 8 52 . . 25 Maximum Alert Level . | . . . . . . Low Security (%) 100 | 100 100 100 . 100 100 Level 1 . | . . . . . . Level 2 . | . . . . . . Level 3 . | . . . . . . Level 4 . | . . . . . . Level 5 . | . . . . . . High Security . | . . . . . . Max Security . | . . . . . . Squads Dispatched 2 | . 1 . . . 1 Investigation 1 | . . . . . 1 Extermination . | . . . . . . Reinforcement 1 | . 1 . . . . Assault . | . . . . . . Garrison . | . . . . . . Intercept . | . . . . . . Searches Triggered . | . . . . . . Construction Impeded . | . . . . . . Haulers Reinforced . | . . . . . . Active Scanning Responses . | . . . . . . Cargo Convoy Interrupts . | . . . . . . Stealth | -11 -10 -10 -10 -9 -8 --------- Run | Yrd Mat Min Exi Min Mat Distress Signals 1 | . 1 . . . . Communications Jammed . | . . . . . . Distress Signals . | . . . . . . Times Spotted 28 | . 3 13 . . 12 Peak Tracking Total 9 | . 4 6 . . 9 Tactical Retreats 1 | . . . . . 1 Traps | -11 -10 -10 -10 -9 -8 ------- Run | Yrd Mat Min Exi Min Mat Traps Triggered 1 | . . . . . 1 Indirectly . | . . . . . . Trap Hack Attempts . | . . . . . . Triggered . | . . . . . . Disarmed . | . . . . . . Reprogrammed . | . . . . . . Reused . | . . . . . . Traps Extracted . | . . . . . . Installed . | . . . . . . Triggered . | . . . . . . Machines | -11 -10 -10 -10 -9 -8 ---------- Run | Yrd Mat Min Exi Min Mat Machines Disabled . | . . . . . . Max in Single Turn . | . . . . . . Machines Repaired . | . . . . . . Machines Dismantled . | . . . . . . Machines Sabotaged . | . . . . . . Overloaded Fab Kills . | . . . . . . Hacking | -11 -10 -10 -10 -9 -8 --------- Run | Yrd Mat Min Exi Min Mat Machines Accessed 3 | . . . . . 3 Terminals 3 | . . . . . 3 Fabricators . | . . . . . . Repair Stations . | . . . . . . Recycling Units . | . . . . . . Scanalyzers . | . . . . . . Garrison Access . | . . . . . . Total Hacks 3 | . . . . . 3 Successful 2 | . . . . . 2 Failed 1 | . . . . . 1 Catastrophic 1 | . . . . . 1 Database Lockouts . | . . . . . . Manual 3 | . . . 1 . 2 Terminals 3 | . . . . . 3 Fabricators . | . . . . . . Repair Stations . | . . . . . . Recycling Units . | . . . . . . Scanalyzers . | . . . . . . Garrison Access . | . . . . . . Terminal Hacks 2 | . . . . . 2 Level Access Points 1 | . . . . . 1 Hauler Manifests 1 | . . . . . 1 Fabricator Hacks . | . . . . . . Repair Station Hacks . | . . . . . . Recycling Unit Hacks . | . . . . . . Scanalyzer . | . . . . . . Garrison Access Hacks . | . . . . . . Unauthorized Hacks . | . . . . . . Terminals . | . . . . . . Fabricators . | . . . . . . Repair Stations . | . . . . . . Recycling Units . | . . . . . . Scanalyzers . | . . . . . . Garrison Access . | . . . . . . Data Cores Recovered . | . . . . . . Used . | . . . . . . Hacking Detections 2 | . . . . . 2 Full Trace Events . | . . . . . . Feedback Events . | . . . . . . Feedback Blocked . | . . . . . . Robot Schematics Acquired . | . . . . . . Robots Built . | . . . . . . Authchips . | . . . . . . Time . | . . . . . . Total Robot Build Rating . | . . . . . . Part Schematics Acquired . | . . . . . . Parts Built . | . . . . . . Authchips . | . . . . . . Time . | . . . . . . Total Part Build Rating . | . . . . . . Parts Repaired . | . . . . . . Time . | . . . . . . Parts Recycled . | . . . . . . Recycled Matter . | . . . . . . Retrieved Matter . | . . . . . . Retrieved Components . | . . . . . . Parts Scanalyzed . | . . . . . . Part Schematics Acquired . | . . . . . . Parts Damaged . | . . . . . . Bothacking | -11 -10 -10 -10 -9 -8 ------------ Run | Yrd Mat Min Exi Min Mat Used RIF Installer . | . . . . . . Robots Hacked . | . . . . . . Non-combat . | . . . . . . Combat . | . . . . . . Robot Hacks Applied . | . . . . . . Relay Couplers Released . | . . . . . . Fabnet Peak Effective % . | . . . . . . Robots Rewired . | . . . . . . Allies Hacked . | . . . . . . Hacks Repelled . | . . . . . . Allies | -11 -10 -10 -10 -9 -8 -------- Run | Yrd Mat Min Exi Min Mat Total Allies . | . . . . . . Largest Group . | . . . . . . Highest-Rated Group . | . . . . . . Highest-Rated Ally . | . . . . . . Total Orders . | . . . . . . Ally Attacks . | . . . . . . Total Damage . | . . . . . . Kills . | . . . . . . Allies Corrupted . | . . . . . . Allies Melted . | . . . . . . Intel | -11 -10 -10 -10 -9 -8 ------- Run | Yrd Mat Min Exi Min Mat Robot Analysis Total . | . . . . . . Derelict Logs Recovered 1 | . . 1 . . . Drone Launches . | . . . . . . Drone Recoveries . | . . . . . . Exploration | -11 -10 -10 -10 -9 -8 ------------- Run | Yrd Mat Min Exi Min Mat Turns Passed 2688 | 79 232 1230 363 78 706 Spaces Moved 1587 | 58 191 729 301 66 242 Core 59 | 10 . 9 . . 40 Treads . | . . . . . . Legs 1528 | 48 191 720 301 66 202 Wheels . | . . . . . . Hover . | . . . . . . Flight . | . . . . . . Fastest Speed 50 | 50 120 120 120 120 100 Average Speed 120 | 111 120 120 120 120 121 Slowest Speed 200 | 120 120 150 120 120 200 Overloaded Moves . | . . . . . . Propulsion Burnouts . | . . . . . . Robots Hopped . | . . . . . . Cave-ins Triggered 1 | . . . . . 1 Exploration Rate (%) 41 | 5 30 91 62 35 25 Regions Visited 5 Branch Regions 3 Pre-discovered Areas 1 | . . 1 . . . Known Exits Taken . | . . . . . . Unknown Exits Taken 5 | 1 1 1 1 1 . Scrap Searched 1 | . . 1 . . . Spaces Dug 5 | . . . . . 5 Terrain Destroyed 90 | . . 71 . . 19 Melee 5 | . . . . . 5 Projectile . | . . . . . . AOE 85 | . . 71 . . 14 Terrain Rammed . | . . . . . . Walls Destroyed . | . . . . . . Machines Disabled . | . . . . . . Actions | -11 -10 -10 -10 -9 -8 --------- Run | Yrd Mat Min Exi Min Mat Total 2195 | 72 194 968 303 65 593 Wait 418 | . . 138 . . 280 Move 1582 | 57 190 728 300 65 242 Hop . | . . . . . . Pick Up 27 | 10 2 11 1 . 3 Fast Attach 1 | . . 1 . . . Attach 27 | 5 1 9 . . 12 Detach 4 | . 1 2 . . 1 Swap 10 | . . 7 1 . 2 Drop 5 | . . 4 1 . . Fire 112 | . . 68 . . 44 Melee 9 | . . . . . 9 Ram . | . . . . . . Kick . | . . . . . . Crush . | . . . . . . Escape Stasis . | . . . . . . Rewire . | . . . . . . Trap . | . . . . . . Miscellaneous . | . . . . . . Route ------- -11/Scrapyard -10/Materials (discovered 2 exits: [*Mat] / [*Min]) -10/Mines (discovered 2 exits: [*Mat] / *Exi) -10/Exiles -9/Mines -8/Materials (discovered 3 exits: Fac x3) History --------- Turn | Location | Event 11 | -11/Scrapyard | Discovered new exit (range 15) 80 | -11/Scrapyard | Entered Materials 152 | -10/Materials | Discovered new exit (range 12) 259 | -10/Materials | Discovered new exit (range 4) 312 | -10/Materials | Entered Mines 338 | -10/Mines | Build established: Mutant 394 | -10/Mines | Learned location of Mines (-9) 905 | -10/Mines | Excavation squad dispatched 905 | -10/Mines | A large section of the Mines collapsed 1155 | -10/Mines | Excavation squad dispatched 1206 | -10/Mines | Discovered new exit (range 5) 1249 | -10/Mines | Core integrity fell below 50% 1281 | -10/Mines | Lost 6 parts (1p2n3w) 1521 | -10/Mines | Deemed a non-threat by the Exiles lab entrance 1521 | -10/Mines | Discovered new exit (range 5) 1542 | -10/Mines | Entered Exiles 1574 | -10/Exiles | Met 8R-AWN 1599 | -10/Exiles | Met EX-HEX 1655 | -10/Exiles | Met EX-BIN 1749 | -10/Exiles | Aligned with FarCom system 1750 | -10/Exiles | Given EX-Vault access code 1779 | -10/Exiles | Opened EX-Vault 1787 | -10/Exiles | Found Prototype Processor 1814 | -10/Exiles | Warned to stay clear of 0b10 Research branches 1826 | -10/Exiles | Build established: Scavenger-Mutant 1847 | -10/Exiles | Met EX-DEC 1887 | -10/Exiles | Discovered new exit (range 14) 1905 | -10/Exiles | Left Exiles lab with 0b10 Alert Chip 1905 | -10/Exiles | Entered Mines 1965 | -9/Mines | Discovered new exit (range 15) 1983 | -9/Mines | Entered Materials 1983 | -8/Materials | Evolved 4 slots: Propulsion x1, Utility x3 1983 | -8/Materials | Identified 0b10 Alert Chip 2016 | -8/Materials | Identified exit to Factory 2373 | -8/Materials | Build established: Scavenger-Assassin 2408 | -8/Materials | Crushed by falling debris 2471 | -8/Materials | Lost 5 parts (1p1n2u1w) 2645 | -8/Materials | Lost 8 parts (4n2u2w) 2655 | -8/Materials | Core integrity fell below 50% 2678 | -8/Materials | Core integrity fell below 20% 2689 | -8/Materials | Destroyed by G-47 Trooper with Particle Gun Last Messages --------------- 02657_ Critical hit (Burn: +37). 02657_ G-47 Trooper destroyed. 02659_ System corrupted: Heat flow error (+106). 02659_ K-01 Serf cleans the Terminal. 02663_ Critical hit (Burn: +37). 02667_ R-06 Scavenger collects Lgt. Nuclear Core. 02671_ B-36 Bruiser destroyed. 02671_ G-47 Trooper destroyed. 02672_ R-06 Scavenger collects Particle Gun. 02674_ Destroyed Lgt. Nuclear Core. 02675_ R-06 Scavenger collects Aluminum Leg. 02675_ Enh. Autogun destroyed. 02675_ Grenade Launcher destroyed. 02678_ Faulty integration triggers energy drain (-37). 02680_ M-13 Machinist repairs G-47 Trooper. 02682_ The unstable cave ceiling collapses. 02684_ Faulty Enh. Autogun destroyed. 02687_ Sml. Laser destroyed. Map ----- +----------------------------------------------------+ | ??# # # # """ """ #??##???????????????? | | ??# # # # """ """ #?#?#???????? ??????? | | ??# # # # """ """ #???????????????????? | | ??# #[ # # ###?#???????????????? | | ??# ########### ##############??????????????????? | | ??# ##* !!! ## ##???? ???#???#???????????????? | | ### ## !!! # #??""" ?? ????###??????????????? | | # ## !!! # # """"" ?#????#???????????????? | | # + # + """"" ??#??##?#????#?????????? | | # # # # """""?? ########?? #?????????? | | # ####+##### ## ?""" ? ?# #?# ###???????? | | + ##?? ? ? # # #???????? | | # ##???? ?? ?# # #???????? | | # ############ ![[ / ??????? | | + + ![[ #?????????????? | | ##############"############ [ #?????????????? | | ###??????#??? ! ??##???######+####????????????? | | ???????????? =! "T" ??#??#%= #????????????? | | ???????????# """ #???##[""""""" #????????????? | | ???????????# ! #???# [""""""" #????????????? | | ???????????###########???##Y" """" # ???????????? | | ??????????????????????#### %% "" + ??????????? | | ??????????????????????# = =%gm """ #????????????? | | ??????????????????????#" ![g/* #????????????? | | ??????????????????????#T ! ="""T""" #????????????? | | ??????????????????????#" @ ####????????????? | | ??????????????????????# ## #####???????????????? | | ??????????????????????# !#?##???????????????????? | | ??????????????????????# #??????????????????????? | | ??????????????????????##+##??????????????????????? | | ????